fUSD/lending_fUSD_20250702
["ID","MTS","AMOUNT","RATE_DAILY","PERIOD"]
[369013417,1751434245103,-150.0,0.00016708,2]
[369013419,1751434245113,-150.0,0.00016708,2]
[369013421,1751434245123,-150.0,0.00016708,2]
[369013423,1751434245133,-150.0,0.00016708,2]
[369013425,1751434245142,-202.7102516,0.00016708,2]
[369013427,1751434245152,-783.0,0.00016708,2]
[369013429,1751434245161,-150.69237325,0.00016708,2]
[369013431,1751434245170,-150.55101939,0.00016708,2]
[369013433,1751434245179,-151.04339289,0.00016708,2]
[369013435,1751434245189,-347.4954699,0.00016761,2]
[369013437,1751434245198,-2666.81267474,0.00016762,2]
[369013439,1751434245208,-500.0,0.00016773,2]
[369013440,1751434245217,-151.0,0.00016773,2]
[369013442,1751434245227,-163.0,0.000168,2]
[369013444,1751434245236,-200.0,0.000168,6]
[369013446,1751434245245,-587.0,0.00016802,2]
[369013448,1751434245255,-250.0,0.0001681,2]
[369013450,1751434245264,-2000.96919,0.0001681,2]
[369013452,1751434245273,-285.97,0.00016841,2]
[369013454,1751434245282,-200.0,0.00016841,2]
[369013456,1751434245292,-2739.85186602,0.00016874,2]
[369013458,1751434245301,-252.0,0.00016887,2]
[369013460,1751434245310,-500.0,0.000169,6]
[369013462,1751434245320,-163.0,0.000169,2]
[369013464,1751434245329,-4092.33547202,0.0001691,2]
[369013466,1751434245339,-151.0,0.0001691,2]
[369013468,1751434245348,-155.116666,0.0001691,2]
[369013470,1751434245358,-151.0,0.0001691,2]
[369013472,1751434245367,-347.4954699,0.00016919,2]
[369013474,1751434245377,-2351.0,0.00016939,2]
[369013476,1751434245387,-500.0,0.00016973,2]
[369013478,1751434245396,-501.74313345,0.00016973,2]
[369013480,1751434245405,-500.0,0.00016973,2]
[369013481,1751434245415,-500.0,0.00016973,2]
[369013483,1751434245424,-490.0,0.00016974,2]
[369013485,1751434245434,-490.0,0.00016974,2]
[369013487,1751434245443,-490.0,0.00016974,2]
[369013489,1751434245452,-490.0,0.00016974,2]
[369013491,1751434245462,-551.64,0.00016974,2]
[369013493,1751434245471,-490.0,0.00016974,2]
[369013495,1751434245481,-490.0,0.00016974,2]
[369013497,1751434245491,-490.0,0.00016974,2]
[369013499,1751434245500,-490.0,0.00016974,2]
[369013501,1751434245510,-490.0,0.00016974,2]
[369013503,1751434245520,-490.0,0.00016974,2]
[369013505,1751434245530,-490.0,0.00016974,2]
[369013507,1751434245539,-490.0,0.00016974,2]
[369013509,1751434245549,-490.0,0.00016974,2]
[369013510,1751434245559,-490.0,0.00016974,2]
[369013512,1751434245570,-490.0,0.00016974,2]
[369013515,1751434245580,-490.0,0.00016974,2]
[369013518,1751434245589,-490.0,0.00016974,2]
[369013521,1751434245599,-490.0,0.00016974,2]
[369013523,1751434245608,-490.0,0.00016974,2]
[369013526,1751434245618,-490.0,0.00016974,2]
[369013529,1751434245629,-490.0,0.00016974,2]
[369013531,1751434245639,-490.0,0.00016974,2]
[369013533,1751434245648,-490.0,0.00016974,2]
[369013535,1751434245657,-490.0,0.00016974,2]
[369013537,1751434245667,-490.0,0.00016974,2]
[369013539,1751434245676,-490.0,0.00016974,2]
[369013541,1751434245686,-490.0,0.00016974,2]
[369013543,1751434245695,-431.22778499,0.00016974,2]
[369013545,1751434245705,-490.0,0.00016974,2]
[369013547,1751434245715,-516.62,0.00016974,2]
[369013549,1751434245724,-490.0,0.00016974,2]
[369013551,1751434245734,-490.0,0.00016974,2]
[369013553,1751434245744,-490.0,0.00016974,2]
[369013555,1751434245754,-490.0,0.00016974,2]
[369013557,1751434245763,-490.0,0.00016974,2]
[369013559,1751434245773,-490.0,0.00016974,2]
[369013561,1751434245782,-490.0,0.00016974,2]
[369013563,1751434245792,-490.0,0.00016974,2]
[369013565,1751434245802,-490.0,0.00016974,2]
[369013567,1751434245811,-490.0,0.00016974,2]
[369013575,1751434245879,-350.02,0.00016974,2]
[369013577,1751434245889,-490.0,0.00016974,2]
[369013579,1751434245899,-490.0,0.00016974,2]
[369013581,1751434245908,-490.0,0.00016974,2]
[369013582,1751434245918,-624.84,0.00016974,2]
[369013584,1751434245927,-490.0,0.00016974,2]
[369013586,1751434245937,-490.0,0.00016974,2]
[369013588,1751434245946,-490.0,0.00016974,2]
[369013590,1751434245955,-629.5,0.00016974,2]
[369013592,1751434245965,-490.0,0.00016974,2]
[369013594,1751434245974,-490.0,0.00016974,2]
[369013596,1751434245984,-490.0,0.00016974,2]
[369013598,1751434245997,-490.0,0.00016974,2]
[369013600,1751434246007,-490.0,0.00016974,2]
[369013602,1751434246016,-490.0,0.00016974,2]
[369013604,1751434246025,-601.88225617,0.00016974,2]
[369013606,1751434246036,-490.0,0.00016974,2]
[369013608,1751434246045,-494.9,0.00016974,2]
[369013610,1751434246054,-490.0,0.00016974,2]
[369013612,1751434246065,-490.0,0.00016974,2]
[369013614,1751434246074,-490.0,0.00016974,2]
[369013616,1751434246083,-490.0,0.00016974,2]
[369013618,1751434246092,-477.05729471,0.00016974,2]
[369013620,1751434246101,-490.0,0.00016974,2]
[369013622,1751434246111,-490.0,0.00016974,2]
[369013624,1751434246120,-490.0,0.00016974,2]
[369013626,1751434246129,-490.0,0.00016974,2]
[369013628,1751434246138,-490.0,0.00016974,2]
[369013630,1751434246147,-490.0,0.00016974,2]
[369013632,1751434246156,-490.0,0.00016974,2]
[369013634,1751434246166,-300.041276,0.00016974,2]
[369013635,1751434246175,-490.0,0.00016974,2]
[369013637,1751434246184,-490.0,0.00016974,2]
[369013639,1751434246193,-496.03105754,0.00016974,2]
[369013641,1751434246202,-490.0,0.00016974,2]
[369013643,1751434246213,-490.0,0.00016974,2]
[369013645,1751434246222,-492.8231202,0.00016974,2]
[369013647,1751434246231,-490.0,0.00016974,2]
[369013649,1751434246241,-491.4498315,0.00016974,2]
[369013651,1751434246250,-490.0,0.00016974,2]
[369013653,1751434246259,-490.0,0.00016974,2]
[369013655,1751434246268,-498.94991183,0.00016974,2]
[369013657,1751434246277,-490.0,0.00016974,2]
[369013658,1751434246286,-490.0,0.00016974,2]
[369013660,1751434246295,-497.27887489,0.00016974,2]
[369013662,1751434246304,-490.0,0.00016974,2]
[369013663,1751434246313,-490.0,0.00016974,2]
[369013665,1751434246322,-490.0,0.00016974,2]
[369013667,1751434246332,-490.0,0.00016974,2]
[369013669,1751434246341,-490.0,0.00016974,2]
[369013670,1751434246351,-490.0,0.00016974,2]
[369013672,1751434246360,-489.15155839,0.00016974,2]
[369013674,1751434246370,-490.0,0.00016974,2]
[369013676,1751434246379,-501.30931337,0.00016974,2]
[369013678,1751434246388,-492.96412627,0.00016974,2]
[369013680,1751434246398,-490.0,0.00016974,2]
[369013682,1751434246407,-490.0,0.00016974,2]
[369013684,1751434246416,-497.89474933,0.00016974,2]
[369013686,1751434246426,-490.0,0.00016974,2]
[369013688,1751434246436,-490.0,0.00016974,2]
[369013690,1751434246445,-490.0,0.00016974,2]
[369013691,1751434246454,-490.0,0.00016974,2]
[369013693,1751434246463,-490.0,0.00016974,2]
[369013695,1751434246472,-546.08,0.00016974,2]
[369013697,1751434246482,-516.78496462,0.00016974,2]
[369013699,1751434246491,-490.0,0.00016974,2]
[369013701,1751434246500,-490.0,0.00016974,2]
[369013703,1751434246510,-490.0,0.00016974,2]
[369013705,1751434246519,-490.0,0.00016974,2]
[369013707,1751434246528,-490.0,0.00016974,2]
[369013709,1751434246537,-490.0,0.00016974,2]
[369013710,1751434246547,-490.0,0.00016974,2]
[369013712,1751434246557,-490.0,0.00016974,2]
[369013714,1751434246566,-151.0,0.00016974,2]
[369013716,1751434246576,-490.0,0.00016974,2]
[369013718,1751434246585,-492.85689877,0.00016974,2]
[369013720,1751434246595,-159.371698,0.00016974,2]
[369013722,1751434246604,-490.0,0.00016974,2]
[369013724,1751434246613,-629.45505239,0.00016974,2]
[369013726,1751434246622,-490.0,0.00016974,2]
[369013728,1751434246632,-490.0,0.00016974,2]
[369013730,1751434246642,-207.32375085,0.00016974,2]
[369013732,1751434246652,-490.0,0.00016974,2]
[369013733,1751434246661,-490.0,0.00016974,2]
[369013734,1751434246670,-490.0,0.00016974,2]
[369013735,1751434246680,-490.0,0.00016974,2]
[369013736,1751434246689,-490.0,0.00016974,2]
[369013737,1751434246699,-490.0,0.00016974,2]
[369013738,1751434246708,-501.52982268,0.00016974,2]
[369013739,1751434246717,-490.0,0.00016974,2]
[369013740,1751434246726,-490.0,0.00016974,2]
[369013741,1751434246735,-490.0,0.00016974,2]
[369013742,1751434246743,-492.51417138,0.00016974,2]
[369013743,1751434246753,-490.0,0.00016974,2]
[369013745,1751434246763,-490.0,0.00016974,2]
[369013747,1751434246772,-490.0,0.00016974,2]
[369013749,1751434246783,-490.0,0.00016974,2]
[369013751,1751434246792,-490.0,0.00016974,2]
[369013753,1751434246801,-490.0,0.00016974,2]
[369013755,1751434246811,-490.0,0.00016974,2]
[369013757,1751434246820,-490.0,0.00016974,2]
[369013759,1751434246830,-151.0,0.00016974,2]
[369013760,1751434246842,-151.0,0.00016974,2]
[369013762,1751434246852,-490.0,0.00016974,2]
[369013765,1751434246861,-507.02307622,0.00016974,2]
[369013766,1751434246871,-490.0,0.00016974,2]
[369013768,1751434246880,-490.0,0.00016974,2]
[369013770,1751434246890,-490.0,0.00016974,2]
[369013772,1751434246899,-194.76,0.00016974,2]
[369013774,1751434246907,-490.0,0.00016974,2]
[369013776,1751434246916,-490.0,0.00016974,2]
[369013778,1751434246926,-495.2836211,0.00016974,2]
[369013779,1751434246936,-490.0,0.00016974,2]
[369013781,1751434246945,-398.55376547,0.00016974,2]
[369013783,1751434246955,-490.0,0.00016974,2]
[369013785,1751434246964,-490.0,0.00016974,2]
[369013787,1751434246973,-490.0,0.00016974,2]
[369013789,1751434246982,-490.0,0.00016974,2]
[369013791,1751434246994,-490.0,0.00016974,2]
[369013793,1751434247004,-151.0,0.00016974,2]
[369013795,1751434247011,-490.0,0.00016974,2]
[369013797,1751434247020,-490.0,0.00016974,2]
[369013799,1751434247031,-490.0,0.00016974,2]
[369013801,1751434247040,-490.0,0.00016974,2]
[369013803,1751434247048,-490.0,0.00016974,2]
[369013805,1751434247057,-490.0,0.00016974,2]
[369013807,1751434247067,-490.0,0.00016974,2]
[369013809,1751434247076,-490.0,0.00016974,2]
[369013810,1751434247085,-490.0,0.00016974,2]
[369013812,1751434247094,-490.0,0.00016974,2]
[369013814,1751434247104,-494.6089467,0.00016974,2]
[369013816,1751434247113,-490.0,0.00016974,2]
[369013818,1751434247123,-490.0,0.00016974,2]
[369013820,1751434247132,-490.0,0.00016974,2]
[369013822,1751434247141,-490.0,0.00016974,2]
[369013824,1751434247150,-493.91732518,0.00016974,2]
[369013826,1751434247159,-499.94119911,0.00016974,2]
[369013828,1751434247167,-490.0,0.00016974,2]
[369013830,1751434247177,-521.98,0.00016974,2]
[369013832,1751434247186,-490.0,0.00016974,2]
[369013834,1751434247195,-490.0,0.00016974,2]
[369013836,1751434247204,-498.38106023,0.00016974,2]
[369013837,1751434247213,-490.0,0.00016974,2]
[369013839,1751434247222,-492.90538099,0.00016974,2]
[369013841,1751434247231,-490.0,0.00016974,2]
[369013843,1751434247240,-500.0,0.00016974,2]
[369013845,1751434247250,-490.0,0.00016974,2]
[369013847,1751434247259,-493.90576913,0.00016974,2]
[369013849,1751434247268,-490.0,0.00016974,2]
[369013851,1751434247278,-490.0,0.00016974,2]
[369013853,1751434247287,-490.0,0.00016974,2]
[369013855,1751434247297,-490.0,0.00016974,2]
[369013857,1751434247306,-490.0,0.00016974,2]
[369013859,1751434247315,-490.0,0.00016974,2]
[369013861,1751434247324,-490.0,0.00016974,2]
[369013863,1751434247333,-490.0,0.00016974,2]
[369013865,1751434247346,-490.0,0.00016974,2]
[369013867,1751434247356,-490.0,0.00016974,2]
[369013869,1751434247366,-490.0,0.00016974,2]
[369013871,1751434247376,-493.66392733,0.00016974,2]
[369013873,1751434247385,-818.98,0.00016974,2]
[369013875,1751434247394,-490.0,0.00016974,2]
[369013876,1751434247403,-490.0,0.00016974,2]
[369013878,1751434247413,-490.0,0.00016974,2]
[369013880,1751434247423,-490.0,0.00016974,2]
[369013882,1751434247432,-490.0,0.00016974,2]
[369013884,1751434247441,-500.15164895,0.00016974,2]
[369013886,1751434247451,-490.0,0.00016974,2]
[369013888,1751434247461,-490.0,0.00016974,2]
[369013890,1751434247471,-490.0,0.00016974,2]
[369013892,1751434247480,-546.94485867,0.00016974,2]
[369013894,1751434247490,-490.0,0.00016974,2]
[369013896,1751434247499,-500.0,0.00016974,2]
[369013898,1751434247509,-172.19610685,0.00016974,2]
[369013900,1751434247519,-151.0,0.00016974,2]
[369013902,1751434247527,-490.0,0.00016974,2]
[369013904,1751434247537,-490.0,0.00016974,2]
[369013906,1751434247546,-490.0,0.00016974,2]
[369013908,1751434247555,-490.0,0.00016974,2]
[369013910,1751434247564,-490.0,0.00016974,2]
[369013911,1751434247573,-490.0,0.00016974,2]
[369013913,1751434247583,-494.78307644,0.00016974,2]
[369013915,1751434247593,-151.0,0.00016974,2]
[369013917,1751434247602,-490.0,0.00016974,2]
[369013919,1751434247611,-490.0,0.00016974,2]
[369013921,1751434247620,-538.74,0.00016974,2]
[369013923,1751434247629,-492.36052053,0.00016974,2]
[369013925,1751434247639,-490.0,0.00016974,2]
[369013927,1751434247648,-591.32,0.00016974,2]
[369013929,1751434247658,-490.0,0.00016974,2]
[369013931,1751434247667,-490.0,0.00016974,2]
[369013933,1751434247676,-490.0,0.00016974,2]
[369013934,1751434247686,-490.0,0.00016974,2]
[369013936,1751434247695,-490.0,0.00016974,2]
[369013938,1751434247704,-490.0,0.00016974,2]
[369013940,1751434247713,-495.70466284,0.00016974,2]
[369013942,1751434247722,-490.0,0.00016974,2]
[369013944,1751434247731,-551.66,0.00016974,2]
[369013946,1751434247741,-490.0,0.00016974,2]
[369013948,1751434247750,-490.0,0.00016974,2]
[369013950,1751434247759,-490.0,0.00016974,2]
[369013951,1751434247768,-584.86,0.00016974,2]
[369013953,1751434247777,-490.0,0.00016974,2]
[369013955,1751434247787,-490.0,0.00016974,2]
[369013957,1751434247795,-490.0,0.00016974,2]
[369013959,1751434247805,-3769.32637795,0.00016974,2]
[369013987,1751434248098,-1601.54362205,0.00016974,2]
[369013989,1751434248109,-490.0,0.00016974,2]
[369013991,1751434248118,-491.32942127,0.00016974,2]
[369013992,1751434248128,-490.0,0.00016974,2]
[369013994,1751434248138,-499.40488903,0.00016974,2]
[369013996,1751434248147,-490.0,0.00016974,2]
[369013998,1751434248156,-495.10759858,0.00016974,2]
[369014000,1751434248165,-490.0,0.00016974,2]
[369014002,1751434248175,-490.0,0.00016974,2]
[369014004,1751434248184,-491.99058753,0.00016974,2]
[369014006,1751434248194,-490.0,0.00016974,2]
[369014008,1751434248204,-185.00897897,0.00016974,2]
[369014009,1751434248213,-490.0,0.00016974,2]
[369014011,1751434248222,-1151.12,0.00016974,2]
[369014013,1751434248232,-498.22608412,0.00016974,2]
[369014015,1751434248241,-1742.49983088,0.00016974,2]
[369014021,1751434248293,-639.09,0.00016974,2]
[369014025,1751434248329,-490.0,0.00016702,2]
[369014027,1751434248339,-1960.36016912,0.00016974,2]
[369014029,1751434248348,-490.0,0.00016974,2]
[369014031,1751434248358,-490.0,0.00016974,2]
[369014032,1751434248368,-494.24869353,0.00016974,2]
[369014034,1751434248378,-495.7107434,0.00016974,2]
[369014036,1751434248388,-414.27566482,0.00016974,2]
[369014038,1751434248398,-495.45521617,0.00016974,2]
[369014040,1751434248408,-497.00221592,0.00016974,2]
[369014042,1751434248419,-513.59461809,0.00016974,2]
[369014044,1751434248428,-495.41310707,0.00016974,2]
[369014046,1751434248438,-1981.15,0.00016974,2]
[369014048,1751434248448,-494.35600545,0.00016974,2]
[369014050,1751434248457,-490.0,0.00016974,2]
[369014052,1751434248467,-490.0,0.00016974,2]
[369014054,1751434248477,-490.0,0.00016974,2]
[369014055,1751434248486,-490.0,0.00016974,2]
[369014057,1751434248496,-624.45,0.00016974,2]
[369014059,1751434248505,-490.0,0.00016974,2]
[369014061,1751434248515,-496.03524369,0.00016974,2]
[369014063,1751434248525,-1480.51,0.00016974,2]
[369014065,1751434248535,-490.0,0.00016974,2]
[369014067,1751434248545,-490.0,0.00016974,2]
[369014069,1751434248555,-490.0,0.00016974,2]
[369014071,1751434248565,-490.0,0.00016974,2]
[369014073,1751434248575,-1153.69,0.00016974,2]
[369014074,1751434248584,-827.27,0.00016974,2]
[369014076,1751434248594,-490.0,0.00016974,2]
[369014078,1751434248603,-496.7968989,0.00016974,2]
[369014080,1751434248613,-490.0,0.00016974,2]
[369014082,1751434248623,-1527.31,0.00016974,2]
[369014084,1751434248633,-490.0,0.00016974,2]
[369014086,1751434248643,-490.0,0.00016974,2]
[369014088,1751434248652,-496.76477653,0.00016974,2]
[369014089,1751434248662,-490.0,0.00016974,2]
[369014091,1751434248672,-490.0,0.00016974,2]
[369014093,1751434248682,-490.0,0.00016974,2]
[369014095,1751434248692,-622.48,0.00016974,2]
[369014097,1751434248702,-1421.4,0.00016974,2]
[369014099,1751434248712,-490.0,0.00016974,2]
[369014101,1751434248722,-490.0,0.00016974,2]
[369014103,1751434248731,-490.0,0.00016974,2]
[369014105,1751434248743,-490.0,0.00016974,2]
[369014107,1751434248753,-775.17,0.00016974,2]
[369014108,1751434248763,-490.0,0.00016974,2]
[369014110,1751434248773,-490.0,0.00016974,2]
[369014112,1751434248783,-490.0,0.00016974,2]
[369014114,1751434248792,-3187.04,0.00016974,2]
[369014116,1751434248802,-490.0,0.00016974,2]
[369014117,1751434248811,-490.0,0.00016974,2]
[369014119,1751434248821,-2363.93,0.00016974,2]
[369014121,1751434248831,-490.0,0.00016974,2]
[369014123,1751434248841,-515.26857873,0.00016974,2]
[369014125,1751434248850,-490.0,0.00016974,2]
[369014127,1751434248861,-490.0,0.00016974,2]
[369014128,1751434248871,-2479.98,0.00016974,2]
[369014130,1751434248881,-1239.94,0.00016974,2]
[369014132,1751434248891,-490.0,0.00016974,2]
[369014133,1751434248900,-490.0,0.00016974,2]
[369014135,1751434248910,-1000.0,0.00016974,2]
[369014137,1751434248920,-1750.19,0.00016974,2]
[369014139,1751434248931,-490.0,0.00016974,2]
[369014140,1751434248941,-490.0,0.00016974,2]
[369014142,1751434248951,-490.0,0.00016974,2]
[369014144,1751434248961,-490.0,0.00016974,2]
[369014146,1751434248971,-492.13720643,0.00016974,2]
[369014148,1751434248980,-490.0,0.00016974,2]
[369014150,1751434248992,-490.0,0.00016974,2]
[369014151,1751434249002,-2396.39,0.00016974,2]
[369014153,1751434249011,-1308.92,0.00016974,2]
[369014155,1751434249020,-490.0,0.00016974,2]
[369014157,1751434249031,-489.76694868,0.00016974,2]
[369014158,1751434249041,-500.0,0.00016974,2]
[369014160,1751434249050,-493.259072,0.00016974,2]
[369014162,1751434249061,-1525.07,0.00016974,2]
[369014164,1751434249070,-490.0,0.00016974,2]
[369014165,1751434249079,-236.52176497,0.00016974,2]
[369014168,1751434249092,-253.47823503,0.00016974,2]
[369014169,1751434249102,-490.0,0.00016974,2]
[369014171,1751434249111,-490.0,0.00016974,2]
[369014173,1751434249121,-490.0,0.00016974,2]
[369014175,1751434249130,-172.09294926,0.00016974,2]
[369014180,1751434249183,-490.0,0.00016701,2]
[369014182,1751434249193,-346.26862333,0.00016974,2]
[369014183,1751434249203,-490.0,0.00016974,2]
[369014185,1751434249212,-547.97140241,0.00016974,2]
[369014187,1751434249222,-208.04672952,0.00016974,2]
[369014189,1751434249234,-281.95327048,0.00016974,2]
[369014191,1751434249244,-251.74672952,0.00016974,2]
[369014193,1751434249256,-239.84044579,0.00016974,2]
[369014195,1751434249266,-4165.31,0.00016974,2]
[369014196,1751434249275,-500.38227611,0.00016974,2]
[369014198,1751434249285,-493.05231859,0.00016974,2]
[369014200,1751434249295,-255.27839401,0.00016974,2]
[369014273,1751434250363,-490.0,0.00016701,2]
[369014275,1751434250373,-490.0,0.00016701,2]
[369014277,1751434250382,-490.0,0.00016701,2]
[369014279,1751434250392,-490.0,0.00016701,2]
[369014281,1751434250402,-488.67131536,0.00016701,2]
[369014283,1751434250411,-490.0,0.00016701,2]
[369014284,1751434250420,-490.0,0.00016701,2]
[369014286,1751434250429,-490.0,0.00016701,2]
[369014288,1751434250438,-445.68868492,0.00016702,2]
[369014292,1751434250469,-150.60131508,0.00016702,2]
[369014294,1751434250479,-490.0,0.00016702,2]
[369014295,1751434250488,-18.94868406,0.00016702,2]
[369014298,1751434250511,-605.81131594,0.00016702,2]
[369014300,1751434250521,-490.0,0.00016702,2]
[369014302,1751434250529,-732.03160599,0.00016974,2]
[369014304,1751434250539,-490.0,0.00016974,2]
[369014305,1751434250548,-490.0,0.00016974,2]
[369014307,1751434250557,-492.37329105,0.00016974,2]
[369014309,1751434250567,-497.09428745,0.00016974,2]
[369014311,1751434250576,-490.0,0.00016974,2]
[369014313,1751434250585,-300.0,0.00016974,2]
[369014315,1751434250595,-490.0,0.00016974,2]
[369014317,1751434250604,-490.0,0.00016974,2]
[369014318,1751434250613,-490.0,0.00016974,2]
[369014320,1751434250622,-1000.02,0.00016974,2]
[369014322,1751434250631,-490.0,0.00016974,2]
[369014324,1751434250641,-490.0,0.00016974,2]
[369014325,1751434250651,-490.0,0.00016974,2]
[369014327,1751434250660,-490.0,0.00016974,2]
[369014329,1751434250670,-490.0,0.00016974,2]
[369014331,1751434250679,-490.0,0.00016974,2]
[369014333,1751434250688,-1847.35,0.00016974,2]
[369014335,1751434250698,-499.65227143,0.00016974,2]
[369014337,1751434250707,-490.0,0.00016974,2]
[369014338,1751434250716,-490.0,0.00016974,2]
[369014340,1751434250726,-491.34319436,0.00016974,2]
[369014342,1751434250736,-490.0,0.00016975,2]
[369014344,1751434250745,-376.54,0.00016975,2]
[369014346,1751434250754,-151.0,0.00016975,2]
[369014347,1751434250763,-854.71,0.00016975,2]
[369014349,1751434250773,-490.0,0.00016975,2]
[369014351,1751434250783,-490.0,0.00016975,2]
[369014353,1751434250792,-494.41880806,0.00016975,2]
[369014355,1751434250801,-490.0,0.00016975,2]
[369014357,1751434250810,-493.88349976,0.00016975,2]
[369014358,1751434250820,-490.0,0.00016975,2]
[369014360,1751434250829,-490.0,0.00016975,2]
[369014362,1751434250839,-460.0,0.00016975,2]
[369014364,1751434250847,-490.0,0.00016975,2]
[369014366,1751434250857,-490.0,0.00016975,2]
[369014367,1751434250866,-490.0,0.00016975,2]
[369014369,1751434250874,-490.0,0.00016975,2]
[369014371,1751434250884,-490.0,0.00016975,2]
[369014373,1751434250893,-156.191065,0.00016975,2]
[369014375,1751434250902,-490.0,0.00016975,2]
[369014377,1751434250911,-490.0,0.00016975,2]
[369014378,1751434250920,-347.13812926,0.00016975,2]
[369014380,1751434250931,-490.0,0.00016975,2]
[369014382,1751434250940,-490.0,0.00016975,2]
[369014384,1751434250949,-490.0,0.00016975,2]
[369014385,1751434250959,-490.0,0.00016975,2]
[369014387,1751434250968,-490.0,0.00016975,2]
[369014389,1751434250980,-151.0,0.00016975,2]
[369014391,1751434250994,-490.0,0.00016975,2]
[369014393,1751434251004,-498.6041753,0.00016975,2]
[369014394,1751434251015,-490.0,0.00016975,2]
[369014396,1751434251024,-490.0,0.00016975,2]
[369014398,1751434251034,-490.0,0.00016975,2]
[369014400,1751434251047,-490.0,0.00016975,2]
[369014402,1751434251056,-490.0,0.00016975,2]
[369014404,1751434251065,-490.0,0.00016975,2]
[369014406,1751434251078,-151.0,0.00016975,2]
[369014408,1751434251089,-490.0,0.00016975,2]
[369014410,1751434251099,-250.14318993,0.00016975,2]
[369014411,1751434251108,-602.62,0.00016975,2]
[369014413,1751434251122,-490.0,0.00016975,2]
[369014415,1751434251132,-490.0,0.00016975,2]
[369014417,1751434251142,-490.0,0.00016975,2]
[369014419,1751434251151,-490.0,0.00016975,2]
[369014421,1751434251160,-615.36,0.00016975,2]
[369014423,1751434251169,-490.0,0.00016975,2]
[369014424,1751434251178,-658.61,0.00016975,2]
[369014426,1751434251188,-490.0,0.00016975,2]
[369014428,1751434251198,-490.0,0.00016975,2]
[369014430,1751434251208,-490.0,0.00016975,2]
[369014432,1751434251217,-490.0,0.00016975,2]
[369014434,1751434251226,-490.0,0.00016975,2]
[369014436,1751434251235,-151.0,0.00016975,2]
[369014437,1751434251244,-151.0,0.00016975,2]
[369014439,1751434251253,-490.0,0.00016975,2]
[369014441,1751434251262,-490.0,0.00016975,2]
[369014443,1751434251271,-490.0,0.00016975,2]
[369014445,1751434251280,-3437.75,0.00016975,2]
[369014447,1751434251289,-490.0,0.00016975,2]
[369014448,1751434251298,-2049.49,0.00016975,2]
[369014450,1751434251307,-490.0,0.00016975,2]
[369014452,1751434251316,-490.0,0.00016975,2]
[369014454,1751434251326,-490.0,0.00016975,2]
[369014456,1751434251336,-490.0,0.00016975,2]
[369014458,1751434251345,-490.0,0.00016975,2]
[369014459,1751434251354,-1001.88,0.00016975,2]
[369014461,1751434251363,-490.0,0.00016975,2]
[369014463,1751434251372,-490.0,0.00016975,2]
[369014465,1751434251382,-759.29,0.00016975,2]
[369014467,1751434251392,-767.32,0.00016975,2]
[369014468,1751434251401,-490.0,0.00016975,2]
[369014470,1751434251410,-592.07,0.00016975,2]
[369014472,1751434251419,-517.64,0.00016975,2]